[Event "Championnat de France Universitaire 2022"]
[Site "Limoges, France"]
[Date "2022.02.05"]
[Round "1.2"]
[White "Cadieu, Corentin"]
[Black "Valles, Manuel"]
[Result "0-1"]
[TimeControl "15'+5''"]
[WhiteElo "1524"]
[BlackElo "2362"]

1. b3 {[%clk 00:15:08]} a5 {[%clk 00:14:53]} {[%emt 00:00:19]} 2. Bb2 {[%clk
00:15:08]} {[%emt 00:00:03]} d5 {[%clk 00:14:36]} {[%emt 00:00:24]} 3. d4
{[%clk 00:15:09]} {[%emt 00:00:03]} a4 {[%clk 00:14:39]} {[%emt 00:00:04]} 4.
e3 {[%clk 00:15:09]} {[%emt 00:00:04]} c6 {[%clk 00:13:46]} {[%emt 00:00:58]} 5.
Nf3 {[%clk 00:15:08]} {[%emt 00:00:06]} Bf5 {[%clk 00:13:40]} {[%emt 00:00:10]}
6. Bd3 {[%clk 00:15:08]} {[%emt 00:00:05]} e6 {[%clk 00:13:31]} {[%emt
00:00:15]} 7. c4 {[%clk 00:14:52]} {[%emt 00:00:21]} Bb4+ {[%clk 00:13:10]}
{[%emt 00:00:25]} 8. Bc3 {[%clk 00:14:41]} {[%emt 00:00:17]} axb3 {[%clk
00:12:31]} {[%emt 00:00:44]} 9. Qxb3 {[%clk 00:14:10]} {[%emt 00:00:36]} Bxd3
{[%clk 00:11:34]} {[%emt 00:01:01]} 10. Qxb4 {[%clk 00:14:07]} {[%emt
00:00:08]} Nd7 {[%clk 00:09:07]} {[%emt 00:02:31]} 11. c5 {[%clk 00:11:59]}
{[%emt 00:02:13]} Ne7 {[%clk 00:07:23]} {[%emt 00:01:49]} 12. Nbd2 {[%clk
00:08:24]} {[%emt 00:03:40]} b6 {[%clk 00:05:05]} {[%emt 00:02:23]} 13. Ne5
{[%clk 00:05:14]} {[%emt 00:03:16]} Nxe5 {[%clk 00:03:11]} {[%emt 00:02:00]} 14.
dxe5 {[%clk 00:05:17]} {[%emt 00:00:02]} bxc5 {[%clk 00:02:04]} {[%emt
00:01:12]} 15. Qxc5 {[%clk 00:05:19]} {[%emt 00:00:02]} O-O {[%clk 00:02:07]}
{[%emt 00:00:03]} 16. Bb4 {[%clk 00:05:17]} {[%emt 00:00:07]} Re8 {[%clk
00:02:07]} {[%emt 00:00:04]} 17. Qd4 {[%clk 00:05:09]} {[%emt 00:00:13]} Bb5
{[%clk 00:02:00]} {[%emt 00:00:12]} 18. Bxe7 {[%clk 00:04:33]} {[%emt
00:00:41]} Qxe7 {[%clk 00:01:35]} {[%emt 00:00:30]} 19. Nb3 {[%clk 00:04:11]}
{[%emt 00:00:27]} Ra4 {[%clk 00:01:39]} {[%emt 00:00:02]} 20. Qb2 {[%clk
00:04:03]} {[%emt 00:00:12]} Qb4+ {[%clk 00:01:28]} {[%emt 00:00:16]} 21. Qd2
{[%clk 00:03:49]} {[%emt 00:00:19]} Qxb3 {[%clk 00:01:23]} {[%emt 00:00:11]} 22.
f4 {[%clk 00:03:29]} {[%emt 00:00:25]} Rea8 {[%clk 00:01:02]} {[%emt 00:00:26]}
23. axb3 {[%clk 00:02:51]} {[%emt 00:00:43]} Rxa1+ {[%clk 00:01:05]} {[%emt
00:00:02]} 24. Kf2 {[%clk 00:02:53]} {[%emt 00:00:02]} R1a2 {[%clk 00:01:08]}
{[%emt 00:00:03]} 25. Qxa2 {[%clk 00:02:56]} {[%emt 00:00:03]} Rxa2+ {[%clk
00:01:12]} {[%emt 00:00:01]} 26. Kg3 {[%clk 00:03:00]} {[%emt 00:00:01]} g5
{[%clk 00:01:14]} {[%emt 00:00:02]} 27. fxg5 {[%clk 00:03:01]} {[%emt
00:00:04]} Kg7 {[%clk 00:01:16]} {[%emt 00:00:03]} 28. h4 {[%clk 00:03:03]}
{[%emt 00:00:02]} Rb2 {[%clk 00:01:19]} {[%emt 00:00:03]} 29. h5 {[%clk
00:02:58]} {[%emt 00:00:10]} Bd3 {[%clk 00:01:14]} {[%emt 00:00:10]} 30. h6+
{[%clk 00:02:59]} {[%emt 00:00:04]} Kg6 {[%clk 00:01:10]} {[%emt 00:00:09]} 31.
Kh4 {[%clk 00:02:58]} {[%emt 00:00:05]} Rxb3 {[%clk 00:00:44]} {[%emt
00:00:31]} 32. Ra1 {[%clk 00:02:31]} {[%emt 00:00:32]} Rb4+ {[%clk 00:00:46]}
{[%emt 00:00:03]} 33. e4 {[%clk 00:02:30]} {[%emt 00:00:06]} Bxe4 {[%clk
00:00:34]} {[%emt 00:00:18]} 34. g4 {[%clk 00:02:20]} {[%emt 00:00:15]} Bf5
{[%clk 00:00:33]} {[%emt 00:00:04]} 35. Ra8 {[%clk 00:02:22]} {[%emt 00:00:05]}
Rxg4+ {[%clk 00:00:35]} {[%emt 00:00:03]} 36. Kh3 {[%clk 00:02:26]} {[%emt
00:00:01]} Ra4+ {[%clk 00:00:35]} {[%emt 00:00:05]} 0-1

[Event "Championnat de France Universitaire 2022"]
[Site "Limoges, France"]
[Date "2022.02.05"]
[Round "1.1"]
[White "Rakotomaharo, Fy Antenaina"]
[Black "Cellier, Cornelius"]
[Result "1-0"]
[TimeControl "15'+5''"]
[WhiteElo "2474"]
[BlackElo "1199"]

1. d4 {[%clk 00:15:07]} {[%emt 00:00:02]} Nf6 {[%clk 00:15:06]} {[%emt
00:00:05]} 2. Nc3 {[%clk 00:15:09]} {[%emt 00:00:02]} g6 {[%clk 00:15:04]}
{[%emt 00:00:08]} 3. e4 {[%clk 00:15:12]} {[%emt 00:00:04]} d6 {[%clk
00:14:51]} {[%emt 00:00:17]} 4. Be3 {[%clk 00:15:12]} {[%emt 00:00:05]} Bg7
{[%clk 00:14:53]} {[%emt 00:00:03]} 5. Qd2 {[%clk 00:15:14]} {[%emt 00:00:03]}
h5 {[%clk 00:12:58]} {[%emt 00:02:00]} 6. h3 {[%clk 00:14:20]} {[%emt
00:00:58]} Bd7 {[%clk 00:12:13]} {[%emt 00:00:51]} 7. e5 {[%clk 00:13:55]}
{[%emt 00:00:29]} dxe5 {[%clk 00:11:42]} {[%emt 00:00:36]} 8. dxe5 {[%clk
00:13:58]} {[%emt 00:00:03]} Ng8 {[%clk 00:11:31]} {[%emt 00:00:15]} 9. f4
{[%clk 00:13:59]} {[%emt 00:00:04]} Qc8 {[%clk 00:11:19]} {[%emt 00:00:18]} 10.
O-O-O {[%clk 00:13:57]} {[%emt 00:00:06]} Nc6 {[%clk 00:09:20]} {[%emt
00:02:05]} 11. Bc4 {[%clk 00:13:42]} {[%emt 00:00:19]} Be6 {[%clk 00:08:44]}
{[%emt 00:00:42]} 12. Nd5 {[%clk 00:13:40]} {[%emt 00:00:07]} Bxd5 {[%clk
00:06:48]} {[%emt 00:02:01]} 13. Bxd5 {[%clk 00:13:17]} {[%emt 00:00:28]} e6
{[%clk 00:06:51]} {[%emt 00:00:03]} 14. Bxc6+ {[%clk 00:12:21]} {[%emt
00:01:00]} bxc6 {[%clk 00:06:53]} {[%emt 00:00:03]} 15. Nf3 {[%clk 00:12:22]}
{[%emt 00:00:03]} Ne7 {[%clk 00:06:53]} {[%emt 00:00:06]} 16. Bc5 {[%clk
00:12:25]} {[%emt 00:00:02]} Nf5 {[%clk 00:06:08]} {[%emt 00:00:50]} 17. g4
{[%clk 00:12:08]} {[%emt 00:00:21]} Ng3 {[%clk 00:05:32]} {[%emt 00:00:42]} 18.
Rhe1 {[%clk 00:12:05]} {[%emt 00:00:07]} hxg4 {[%clk 00:03:48]} {[%emt
00:01:50]} 19. hxg4 {[%clk 00:12:07]} {[%emt 00:00:02]} Bf8 {[%clk 00:03:43]}
{[%emt 00:00:09]} 20. Bxf8 {[%clk 00:11:39]} {[%emt 00:00:33]} Kxf8 {[%clk
00:03:44]} {[%emt 00:00:05]} 21. Qg2 {[%clk 00:11:39]} {[%emt 00:00:05]} Nh5
{[%clk 00:02:32]} {[%emt 00:01:17]} 22. gxh5 {[%clk 00:11:41]} {[%emt
00:00:03]} Rxh5 {[%clk 00:02:36]} {[%emt 00:00:02]} 23. Rh1 {[%clk 00:11:35]}
{[%emt 00:00:10]} Rxh1 {[%clk 00:01:28]} {[%emt 00:01:13]} 24. Rxh1 {[%clk
00:11:37]} {[%emt 00:00:02]} Kg7 {[%clk 00:01:33]} 25. Qg5 {[%clk 00:11:40]}
{[%emt 00:00:04]} 1-0

[Event "Championnat de France Universitaire 2022"]
[Site "Limoges, France"]
[Date "2022.02.05"]
[Round "1.4"]
[White "Desit, Pierre-Louis"]
[Black "Gatineau, Yovann"]
[Result "0-1"]
[TimeControl "15'+5''"]
[WhiteElo "1199"]
[BlackElo "2384"]

1. e4 {[%clk 00:15:06]} {[%emt 00:00:03]} c5 {[%clk 00:15:08]} {[%emt
00:00:03]} 2. c3 {[%clk 00:15:09]} {[%emt 00:00:03]} Nf6 {[%clk 00:15:11]} 3.
e5 {[%clk 00:15:06]} {[%emt 00:00:09]} Nd5 {[%clk 00:15:15]} 4. d4 {[%clk
00:14:55]} {[%emt 00:00:16]} cxd4 {[%clk 00:15:19]} {[%emt 00:00:02]} 5. cxd4
{[%clk 00:14:43]} {[%emt 00:00:18]} d6 {[%clk 00:15:23]} 6. Bc4 {[%clk
00:14:10]} {[%emt 00:00:37]} Nb6 {[%clk 00:15:25]} {[%emt 00:00:02]} 7. Bb3
{[%clk 00:13:25]} {[%emt 00:00:51]} Nc6 {[%clk 00:14:45]} {[%emt 00:00:44]} 8.
Nf3 {[%clk 00:12:04]} {[%emt 00:01:26]} dxe5 {[%clk 00:14:37]} {[%emt
00:00:13]} 9. Nxe5 {[%clk 00:10:52]} {[%emt 00:01:17]} e6 {[%clk 00:11:47]}
{[%emt 00:02:55]} 10. Qf3 {[%clk 00:08:14]} {[%emt 00:02:42]} Bb4+ {[%clk
00:11:10]} {[%emt 00:00:42]} 11. Nc3 {[%clk 00:07:38]} {[%emt 00:00:42]} O-O
{[%clk 00:10:51]} {[%emt 00:00:24]} 12. Nxc6 {[%clk 00:06:59]} {[%emt
00:00:44]} bxc6 {[%clk 00:10:54]} {[%emt 00:00:02]} 13. O-O {[%clk 00:06:18]}
{[%emt 00:00:46]} Qxd4 {[%clk 00:08:15]} {[%emt 00:02:44]} 14. Rd1 {[%clk
00:05:09]} {[%emt 00:01:14]} Qe5 {[%clk 00:07:46]} {[%emt 00:00:33]} 15. Bf4
{[%clk 00:04:56]} {[%emt 00:00:18]} Qf5 {[%clk 00:07:30]} {[%emt 00:00:21]} 16.
Ne4 {[%clk 00:03:59]} {[%emt 00:01:03]} Nd5 {[%clk 00:06:56]} {[%emt 00:00:39]}
17. Bxd5 {[%clk 00:03:22]} {[%emt 00:00:41]} cxd5 {[%clk 00:06:53]} {[%emt
00:00:09]} 18. Ng3 {[%clk 00:03:19]} {[%emt 00:00:08]} Qg6 {[%clk 00:06:34]}
{[%emt 00:00:23]} 19. a3 {[%clk 00:02:58]} {[%emt 00:00:27]} Be7 {[%clk
00:05:52]} {[%emt 00:00:47]} 20. Rac1 {[%clk 00:02:50]} {[%emt 00:00:14]} Bf6
{[%clk 00:04:57]} {[%emt 00:01:00]} 21. b4 {[%clk 00:02:38]} {[%emt 00:00:17]}
e5 {[%clk 00:04:58]} {[%emt 00:00:04]} 22. Bd2 {[%clk 00:02:02]} {[%emt
00:00:41]} Bg4 {[%clk 00:04:54]} {[%emt 00:00:09]} 23. Qxd5 {[%clk 00:01:35]}
{[%emt 00:00:32]} Rfd8 {[%clk 00:04:56]} {[%emt 00:00:03]} 24. Qe4 {[%clk
00:01:18]} {[%emt 00:00:22]} Bxd1 {[%clk 00:04:56]} {[%emt 00:00:05]} 25. Rxd1
{[%clk 00:01:00]} {[%emt 00:00:23]} Bg5 {[%clk 00:04:42]} {[%emt 00:00:20]} 26.
Qxg6 {[%clk 00:00:25]} {[%emt 00:00:40]} hxg6 {[%clk 00:04:45]} {[%emt
00:00:02]} 27. Nf1 {[%clk 00:00:28]} {[%emt 00:00:02]} Rd3 {[%clk 00:04:44]}
{[%emt 00:00:05]} 28. h3 {[%clk 00:00:21]} {[%emt 00:00:12]} Bh6 {[%clk
00:04:15]} {[%emt 00:00:34]} 29. g4 {[%clk 00:00:21]} {[%emt 00:00:06]} Rad8
{[%clk 00:04:02]} {[%emt 00:00:17]} 30. g5 {[%clk 00:00:23]} {[%emt 00:00:03]}
Bxg5 {[%clk 00:04:04]} {[%emt 00:00:03]} 0-1

[Event "Championnat de France Universitaire 2022"]
[Site "Limoges, France"]
[Date "2022.02.05"]
[Round "1.3"]
[White "Lafortune, Emerick"]
[Black "Scistri, Luca"]
[Result "1-0"]
[TimeControl "15'+5''"]
[WhiteElo "2270"]
[BlackElo "1519"]

1. Nf3 {[%clk 00:15:07]} {[%emt 00:00:02]} Nf6 {[%clk 00:15:06]} {[%emt
00:00:05]} 2. c4 {[%clk 00:15:10]} {[%emt 00:00:02]} d5 {[%clk 00:14:51]}
{[%emt 00:00:19]} 3. cxd5 {[%clk 00:15:11]} {[%emt 00:00:05]} Nxd5 {[%clk
00:14:53]} {[%emt 00:00:03]} 4. e4 {[%clk 00:15:03]} {[%emt 00:00:13]} Nb6
{[%clk 00:14:36]} {[%emt 00:00:23]} 5. d4 {[%clk 00:15:04]} {[%emt 00:00:04]}
Bg4 {[%clk 00:14:29]} {[%emt 00:00:11]} 6. Be3 {[%clk 00:14:36]} {[%emt
00:00:33]} e5 {[%clk 00:13:52]} {[%emt 00:00:42]} 7. d5 {[%clk 00:13:47]}
{[%emt 00:00:55]} c6 {[%clk 00:11:58]} {[%emt 00:01:59]} 8. Nc3 {[%clk
00:13:03]} {[%emt 00:00:48]} Bb4 {[%clk 00:10:34]} {[%emt 00:01:28]} 9. Be2
{[%clk 00:10:59]} {[%emt 00:02:09]} Bxf3 {[%clk 00:08:12]} {[%emt 00:02:27]} 10.
Bxf3 {[%clk 00:10:11]} {[%emt 00:00:53]} O-O {[%clk 00:08:05]} {[%emt
00:00:12]} 11. O-O {[%clk 00:08:54]} {[%emt 00:01:21]} cxd5 {[%clk 00:07:12]}
{[%emt 00:00:58]} 12. Nxd5 {[%clk 00:08:05]} {[%emt 00:00:54]} Nxd5 {[%clk
00:06:40]} {[%emt 00:00:37]} 13. exd5 {[%clk 00:08:06]} {[%emt 00:00:04]} Bd6
{[%clk 00:05:06]} {[%emt 00:01:39]} 14. Qb3 {[%clk 00:07:55]} {[%emt 00:00:16]}
b6 {[%clk 00:03:20]} {[%emt 00:01:51]} 15. Rac1 {[%clk 00:04:37]} {[%emt
00:03:22]} Nd7 {[%clk 00:03:16]} {[%emt 00:00:09]} 16. Rfd1 {[%clk 00:04:08]}
{[%emt 00:00:34]} Rc8 {[%clk 00:02:07]} {[%emt 00:01:14]} 17. Rc6 {[%clk
00:03:52]} {[%emt 00:00:21]} Rxc6 {[%clk 00:00:10]} {[%emt 00:02:02]} 18. dxc6
{[%clk 00:03:52]} {[%emt 00:00:05]} Nc5 {[%clk 00:00:14]} {[%emt 00:00:02]} 19.
Bxc5 {[%clk 00:02:37]} {[%emt 00:01:19]} bxc5 {[%clk 00:00:16]} {[%emt
00:00:03]} 20. Qd5 {[%clk 00:02:35]} {[%emt 00:00:07]} Be7 {[%clk 00:00:10]}
{[%emt 00:00:12]} 21. Qxe5 {[%clk 00:02:15]} {[%emt 00:00:25]} Qe8 {[%clk
00:00:00]} {[%emt 00:00:11]} 1-0

[ePGN "0.1;DGT LiveChess/2.2.5"]

[Event "Championnat de France Universitaire 2022"]
[Site "Limoges, France"]
[Date "2022.02.05"]
[Round "2.4"]
[White "Gatineau, Yovann"]
[Black "Afraoui, Solenn"]
[Result "1-0"]
[TimeControl "15'+5''"]
[WhiteElo "2384"]
[BlackElo "1913"]

1. d4 {[%clk 00:15:07]} {[%emt 00:00:02]} Nf6 {[%clk 00:15:08]} {[%emt
00:00:04]} 2. Bf4 {[%clk 00:15:11]} e6 {[%clk 00:15:09]} {[%emt 00:00:04]} 3.
e3 {[%clk 00:15:15]} c5 {[%clk 00:15:10]} {[%emt 00:00:05]} 4. Nd2 {[%clk
00:14:54]} {[%emt 00:00:26]} b6 {[%clk 00:14:35]} {[%emt 00:00:41]} 5. Ngf3
{[%clk 00:14:41]} {[%emt 00:00:17]} Bb7 {[%clk 00:14:38]} {[%emt 00:00:03]} 6.
Bd3 {[%clk 00:14:42]} {[%emt 00:00:04]} cxd4 {[%clk 00:14:21]} {[%emt
00:00:22]} 7. exd4 {[%clk 00:14:45]} {[%emt 00:00:02]} Be7 {[%clk 00:14:06]}
{[%emt 00:00:20]} 8. h3 {[%clk 00:14:46]} {[%emt 00:00:04]} d6 {[%clk
00:13:33]} {[%emt 00:00:38]} 9. c3 {[%clk 00:14:48]} {[%emt 00:00:03]} O-O
{[%clk 00:13:18]} {[%emt 00:00:19]} 10. Qe2 {[%clk 00:14:45]} {[%emt 00:00:09]}
Nbd7 {[%clk 00:12:41]} {[%emt 00:00:43]} 11. O-O {[%clk 00:14:41]} {[%emt
00:00:09]} Re8 {[%clk 00:12:25]} {[%emt 00:00:20]} 12. Rfe1 {[%clk 00:14:07]}
{[%emt 00:00:40]} Bf8 {[%clk 00:11:57]} {[%emt 00:00:33]} 13. Rad1 {[%clk
00:12:10]} {[%emt 00:02:02]} e5 {[%clk 00:09:11]} {[%emt 00:02:52]} 14. dxe5
{[%clk 00:12:05]} {[%emt 00:00:10]} dxe5 {[%clk 00:09:14]} {[%emt 00:00:01]} 15.
Bg5 {[%clk 00:09:20]} {[%emt 00:02:50]} h6 {[%clk 00:06:30]} {[%emt 00:02:49]}
16. Bxf6 {[%clk 00:07:49]} {[%emt 00:01:36]} Qxf6 {[%clk 00:05:55]} {[%emt
00:00:40]} 17. Ne4 {[%clk 00:07:08]} {[%emt 00:00:46]} Qc6 {[%clk 00:05:51]}
{[%emt 00:00:09]} 18. Bb5 {[%clk 00:06:24]} {[%emt 00:00:49]} Qxe4 {[%clk
00:05:18]} {[%emt 00:00:38]} 19. Qxe4 {[%clk 00:06:27]} {[%emt 00:00:02]} Bxe4
{[%clk 00:05:21]} {[%emt 00:00:02]} 20. Rxe4 {[%clk 00:06:25]} {[%emt
00:00:07]} Nf6 {[%clk 00:04:30]} {[%emt 00:00:56]} 21. Bxe8 {[%clk 00:06:25]}
{[%emt 00:00:05]} Nxe4 {[%clk 00:04:32]} {[%emt 00:00:03]} 22. Bc6 {[%clk
00:06:28]} {[%emt 00:00:02]} Nxc3 {[%clk 00:03:46]} {[%emt 00:00:51]} 23. bxc3
{[%clk 00:06:31]} {[%emt 00:00:02]} Rc8 {[%clk 00:03:49]} {[%emt 00:00:02]} 24.
Bd5 {[%clk 00:06:32]} {[%emt 00:00:04]} Rxc3 {[%clk 00:03:15]} {[%emt
00:00:39]} 25. Nxe5 {[%clk 00:06:34]} {[%emt 00:00:03]} g6 {[%clk 00:02:19]}
{[%emt 00:01:01]} 26. Bxf7+ {[%clk 00:06:20]} {[%emt 00:00:19]} Kg7 {[%clk
00:02:19]} {[%emt 00:00:05]} 27. Bb3 {[%clk 00:05:34]} {[%emt 00:00:51]} Bc5
{[%clk 00:02:03]} {[%emt 00:00:21]} 28. Kh2 {[%clk 00:05:13]} {[%emt 00:00:25]}
Bxf2 {[%clk 00:01:05]} {[%emt 00:01:02]} 29. Rd7+ {[%clk 00:05:16]} {[%emt
00:00:03]} Kf8 {[%clk 00:01:02]} {[%emt 00:00:07]} 30. Rf7+ {[%clk 00:04:54]}
{[%emt 00:00:28]} 1-0

[Event "Championnat de France Universitaire 2022"]
[Site "Limoges, France"]
[Date "2022.02.05"]
[Round "2.3"]
[White "Samson, Valentin"]
[Black "Lafortune, Emerick"]
[Result "0-1"]
[TimeControl "15'+5''"]
[WhiteElo "1813"]
[BlackElo "2270"]

1. e4 {[%clk 00:15:07]} {[%emt 00:00:02]} e5 {[%clk 00:15:08]} {[%emt
00:00:03]} 2. Nf3 {[%clk 00:15:10]} {[%emt 00:00:02]} Nc6 {[%clk 00:15:11]}
{[%emt 00:00:02]} 3. d4 {[%clk 00:15:13]} {[%emt 00:00:02]} exd4 {[%clk
00:15:13]} {[%emt 00:00:02]} 4. Nxd4 {[%clk 00:15:16]} {[%emt 00:00:02]} Bc5
{[%clk 00:15:16]} {[%emt 00:00:02]} 5. Be3 {[%clk 00:15:13]} {[%emt 00:00:08]}
Qf6 {[%clk 00:15:17]} {[%emt 00:00:05]} 6. c3 {[%clk 00:15:16]} Nge7 {[%clk
00:15:20]} {[%emt 00:00:03]} 7. g3 {[%clk 00:15:09]} {[%emt 00:00:12]} d5
{[%clk 00:14:18]} {[%emt 00:01:07]} 8. Bg2 {[%clk 00:15:01]} {[%emt 00:00:13]}
dxe4 {[%clk 00:13:41]} {[%emt 00:00:41]} 9. Nb5 {[%clk 00:15:03]} {[%emt
00:00:03]} Bxe3 {[%clk 00:10:55]} {[%emt 00:02:51]} 10. Nxc7+ {[%clk 00:15:05]}
{[%emt 00:00:03]} Kf8 {[%clk 00:10:58]} {[%emt 00:00:02]} 11. O-O {[%clk
00:15:08]} {[%emt 00:00:02]} Rb8 {[%clk 00:10:37]} {[%emt 00:00:27]} 12. fxe3
{[%clk 00:15:11]} {[%emt 00:00:02]} Qe5 {[%clk 00:09:07]} {[%emt 00:01:34]} 13.
Qb3 {[%clk 00:15:13]} {[%emt 00:00:03]} f5 {[%clk 00:08:21]} {[%emt 00:00:51]}
14. Nb5 {[%clk 00:15:14]} {[%emt 00:00:04]} Be6 {[%clk 00:08:04]} {[%emt
00:00:22]} 15. Qa4 {[%clk 00:13:44]} {[%emt 00:01:36]} g6 {[%clk 00:06:40]}
{[%emt 00:01:28]} 16. N1a3 {[%clk 00:11:05]} {[%emt 00:02:44]} Kg7 {[%clk
00:06:31]} {[%emt 00:00:14]} 17. Nc2 {[%clk 00:10:32]} {[%emt 00:00:38]} Bf7
{[%clk 00:05:38]} {[%emt 00:00:58]} 18. Nxa7 {[%clk 00:09:23]} {[%emt
00:01:15]} Ra8 {[%clk 00:04:42]} {[%emt 00:01:00]} 19. Nxc6 {[%clk 00:09:25]}
{[%emt 00:00:03]} Nxc6 {[%clk 00:04:30]} {[%emt 00:00:17]} 0-1

[Event "Championnat de France Universitaire 2022"]
[Site "Limoges, France"]
[Date "2022.02.05"]
[Round "2.1"]
[White "Tomasi, Elise"]
[Black "Rakotomaharo, Fy Antenaina"]
[Result "0-1"]
[TimeControl "15'+5''"]
[WhiteElo "1988"]
[BlackElo "2474"]

1. d4 {[%clk 00:15:05]} {[%emt 00:00:04]} Nf6 {[%clk 00:15:07]} {[%emt
00:00:03]} 2. Nf3 {[%clk 00:15:02]} {[%emt 00:00:08]} g6 {[%clk 00:15:09]}
{[%emt 00:00:03]} 3. g3 {[%clk 00:15:06]} {[%emt 00:00:01]} d5 {[%clk
00:15:02]} {[%emt 00:00:11]} 4. Bg2 {[%clk 00:14:59]} {[%emt 00:00:13]} Bg7
{[%clk 00:15:05]} 5. O-O {[%clk 00:14:54]} {[%emt 00:00:10]} O-O {[%clk
00:15:08]} {[%emt 00:00:02]} 6. c4 {[%clk 00:14:32]} {[%emt 00:00:27]} c6
{[%clk 00:15:09]} {[%emt 00:00:03]} 7. Qb3 {[%clk 00:13:42]} {[%emt 00:00:55]}
a5 {[%clk 00:15:05]} {[%emt 00:00:09]} 8. Nc3 {[%clk 00:11:46]} {[%emt
00:02:01]} dxc4 {[%clk 00:14:07]} {[%emt 00:01:03]} 9. Qxc4 {[%clk 00:11:28]}
{[%emt 00:00:24]} Bf5 {[%clk 00:14:06]} {[%emt 00:00:05]} 10. Ne5 {[%clk
00:06:37]} {[%emt 00:04:56]} Nbd7 {[%clk 00:13:17]} {[%emt 00:00:54]} 11. Nxd7
{[%clk 00:05:35]} {[%emt 00:01:08]} Qxd7 {[%clk 00:13:07]} {[%emt 00:00:15]} 12.
e4 {[%clk 00:05:31]} {[%emt 00:00:10]} Be6 {[%clk 00:12:17]} {[%emt 00:00:54]}
13. Qd3 {[%clk 00:04:34]} {[%emt 00:01:02]} Rfd8 {[%clk 00:12:10]} {[%emt
00:00:11]} 14. Be3 {[%clk 00:04:32]} {[%emt 00:00:08]} Ng4 {[%clk 00:11:41]}
{[%emt 00:00:34]} 15. Rad1 {[%clk 00:02:53]} {[%emt 00:01:44]} a4 {[%clk
00:10:22]} {[%emt 00:01:23]} 16. Qc2 {[%clk 00:01:36]} {[%emt 00:01:22]} Nxe3
{[%clk 00:08:42]} {[%emt 00:01:45]} 17. fxe3 {[%clk 00:01:39]} {[%emt
00:00:03]} b5 {[%clk 00:08:39]} {[%emt 00:00:08]} 18. Rd2 {[%clk 00:00:28]}
{[%emt 00:01:16]} Bc4 {[%clk 00:08:10]} {[%emt 00:00:33]} 19. Rfd1 {[%clk
00:00:15]} {[%emt 00:00:18]} Bh6 {[%clk 00:08:11]} {[%emt 00:00:04]} 20. Kf2
{[%clk 00:00:13]} {[%emt 00:00:08]} Qe6 {[%clk 00:08:09]} {[%emt 00:00:06]} 21.
e5 {[%clk 00:00:14]} {[%emt 00:00:04]} b4 {[%clk 00:07:09]} {[%emt 00:01:05]}
22. Ne4 {[%clk 00:00:17]} {[%emt 00:00:02]} Qf5+ {[%clk 00:06:36]} {[%emt
00:00:38]} 23. Bf3 {[%clk 00:00:19]} {[%emt 00:00:02]} Bxa2 {[%clk 00:06:38]}
{[%emt 00:00:03]} 24. g4 {[%clk 00:00:10]} {[%emt 00:00:15]} Qc8 {[%clk
00:06:27]} {[%emt 00:00:16]} 25. Rc1 {[%clk 00:00:11]} {[%emt 00:00:05]} Bd5
{[%clk 00:06:21]} {[%emt 00:00:10]} 26. Ng3 {[%clk 00:00:07]} {[%emt 00:00:09]}
a3 {[%clk 00:05:59]} {[%emt 00:00:27]} 27. bxa3 {[%clk 00:00:10]} {[%emt
00:00:02]} Rxa3 {[%clk 00:06:01]} {[%emt 00:00:03]} 28. Rd3 {[%clk 00:00:10]}
{[%emt 00:00:06]} Ra2 {[%clk 00:06:01]} {[%emt 00:00:04]} 0-1

[Event "Championnat de France Universitaire 2022"]
[Site "Limoges, France"]
[Date "2022.02.05"]
[Round "2.2"]
[White "Valles, Manuel"]
[Black "Le Corronc, Yohan"]
[Result "1-0"]
[TimeControl "15'+5''"]
[WhiteElo "2362"]
[BlackElo "1880"]

1. e4 {[%clk 00:15:07]} {[%emt 00:00:02]} c6 {[%clk 00:15:08]} {[%emt
00:00:03]} 2. d4 {[%clk 00:14:44]} {[%emt 00:00:28]} d5 {[%clk 00:15:10]}
{[%emt 00:00:04]} 3. Nc3 {[%clk 00:14:25]} {[%emt 00:00:22]} dxe4 {[%clk
00:15:01]} {[%emt 00:00:14]} 4. Nxe4 {[%clk 00:14:29]} {[%emt 00:00:03]} Bf5
{[%clk 00:15:01]} {[%emt 00:00:04]} 5. Ng3 {[%clk 00:14:32]} {[%emt 00:00:01]}
Bg6 {[%clk 00:15:04]} {[%emt 00:00:02]} 6. f4 {[%clk 00:14:29]} {[%emt
00:00:08]} e6 {[%clk 00:14:46]} {[%emt 00:00:23]} 7. Nf3 {[%clk 00:14:31]}
{[%emt 00:00:03]} Nd7 {[%clk 00:14:17]} {[%emt 00:00:33]} 8. Bd3 {[%clk
00:13:20]} {[%emt 00:01:16]} Bxd3 {[%clk 00:13:44]} {[%emt 00:00:39]} 9. Qxd3
{[%clk 00:13:23]} {[%emt 00:00:02]} Ngf6 {[%clk 00:13:07]} {[%emt 00:00:42]} 10.
O-O {[%clk 00:13:21]} {[%emt 00:00:07]} g6 {[%clk 00:10:50]} {[%emt 00:02:23]}
11. f5 {[%clk 00:08:09]} {[%emt 00:05:17]} gxf5 {[%clk 00:08:52]} {[%emt
00:02:03]} 12. Bg5 {[%clk 00:08:11]} {[%emt 00:00:02]} Qa5 {[%clk 00:07:35]}
{[%emt 00:01:21]} 13. Ne5 {[%clk 00:03:58]} {[%emt 00:04:20]} Bg7 {[%clk
00:04:39]} {[%emt 00:03:00]} 14. Nc4 {[%clk 00:00:22]} {[%emt 00:03:41]} Qd5
{[%clk 00:04:15]} {[%emt 00:00:27]} 15. Nxf5 {[%clk 00:00:26]} {[%emt
00:00:04]} O-O {[%clk 00:03:07]} {[%emt 00:01:12]} 16. Ne7+ {[%clk 00:00:29]}
{[%emt 00:00:02]} Kh8 {[%clk 00:03:03]} {[%emt 00:00:10]} 17. Nxd5 {[%clk
00:00:32]} {[%emt 00:00:01]} 1-0

[ePGN "0.1;DGT LiveChess/2.2.5"]